[Event "Titled Tuesday Blitz September 27 Late 2022"]
[White "Ozen, Bahadir"]
[Black "Richter, Paul"]
[WhiteFideId "6337058"]
[BlackFideId "2046350"]
[WhiteElo "2503"]
[BlackElo "2580"]
[Result "1/2-1/2"]
[Round "11"]
[TimeControl "180+1"]
[Date "2022.09.28"]
[WhiteClock "0:00:13"]
[BlackClock "0:00:07"]

1. g3 {[%clk 0:03:00]}  Nf6 {[%clk 0:02:58]} 2. Bg2 {[%clk 0:03:01]}  g6 {[%clk 0:02:59]} 3. Nf3 {[%clk 0:03:01]}  Bg7 {[%clk 0:02:59]} 4. O-O {[%clk 0:03:01]}  O-O {[%clk 0:03:00]} 5. d3 {[%clk 0:03:02]}  d6 {[%clk 0:03:00]} 6. e4 {[%clk 0:03:03]}  e5 {[%clk 0:03:01]} 7. Nbd2 {[%clk 0:03:03]}  a5 {[%clk 0:03:00]} 8. a4 {[%clk 0:03:02]}  c6 {[%clk 0:03:01]} 9. c3 {[%clk 0:03:02]}  Nbd7 {[%clk 0:03:01]} 10. Re1 {[%clk 0:03:01]}  Nc5 {[%clk 0:02:57]} 11. Qc2 {[%clk 0:03:00]}  Qc7 {[%clk 0:02:55]} 12. b4 {[%clk 0:02:51]}  axb4 {[%clk 0:02:44]} 13. cxb4 {[%clk 0:02:51]}  Ne6 {[%clk 0:02:45]} 14. Bb2 {[%clk 0:02:50]}  c5 {[%clk 0:02:39]} 15. b5 {[%clk 0:02:45]}  b6 {[%clk 0:02:35]} 16. Nc4 {[%clk 0:02:41]}  Nd7 {[%clk 0:02:23]} 17. Qb3 {[%clk 0:02:35]}  Bb7 {[%clk 0:02:22]} 18. Ne3 {[%clk 0:02:29]}  Nd4 {[%clk 0:02:18]} 19. Qc4 {[%clk 0:01:54]}  Rfc8 {[%clk 0:01:25]} 20. Ra2 {[%clk 0:01:35]}  Nf8 {[%clk 0:01:18]} 21. Nd5 {[%clk 0:01:29]}  Bxd5 {[%clk 0:01:13]} 22. Qxd5 {[%clk 0:01:28]}  Nc2 {[%clk 0:01:05]} 23. Rc1 {[%clk 0:01:15]}  Nb4 {[%clk 0:01:05]} 24. Qc4 {[%clk 0:01:16]}  Nxa2 {[%clk 0:01:04]} 25. Qxa2 {[%clk 0:01:17]}  Bh6 {[%clk 0:00:54]} 26. Rc4 {[%clk 0:01:08]}  Ne6 {[%clk 0:00:50]} 27. Bh3 {[%clk 0:01:04]}  Re8 {[%clk 0:00:50]} 28. Bc1 {[%clk 0:00:59]}  Bxc1 {[%clk 0:00:49]} 29. Rxc1 {[%clk 0:01:00]}  Nd4 {[%clk 0:00:43]} 30. Nxd4 {[%clk 0:01:00]}  exd4 {[%clk 0:00:44]} 31. f4 {[%clk 0:01:01]}  Ra7 {[%clk 0:00:38]} 32. Bg4 {[%clk 0:00:52]}  Qe7 {[%clk 0:00:33]} 33. Bd1 {[%clk 0:00:51]}  Kg7 {[%clk 0:00:30]} 34. Bb3 {[%clk 0:00:51]}  f5 {[%clk 0:00:28]} 35. Bd5 {[%clk 0:00:50]}  fxe4 {[%clk 0:00:28]} 36. dxe4 {[%clk 0:00:51]}  Qf6 {[%clk 0:00:25]} 37. Qc4 {[%clk 0:00:44]}  Rae7 {[%clk 0:00:19]} 38. Re1 {[%clk 0:00:42]}  h5 {[%clk 0:00:19]} 39. Kg2 {[%clk 0:00:42]}  h4 {[%clk 0:00:19]} 40. a5 {[%clk 0:00:41]}  bxa5 {[%clk 0:00:18]} 41. b6 {[%clk 0:00:41]}  hxg3 {[%clk 0:00:18]} 42. hxg3 {[%clk 0:00:42]}  Rh8 {[%clk 0:00:17]} 43. b7 {[%clk 0:00:41]}  Ree8 {[%clk 0:00:18]} 44. Qb5 {[%clk 0:00:31]}  d3 {[%clk 0:00:17]} 45. Qxd3 {[%clk 0:00:18]}  Qb2+ {[%clk 0:00:14]} 46. Re2 {[%clk 0:00:17]}  Qa1 {[%clk 0:00:15]} 47. e5 {[%clk 0:00:11]}  Qh1+ {[%clk 0:00:13]} 48. Kf2 {[%clk 0:00:12]}  Rh2+ {[%clk 0:00:13]} 49. Ke3 {[%clk 0:00:12]}  Qc1+ {[%clk 0:00:12]} 50. Kf3 {[%clk 0:00:10]}  Qf1+ {[%clk 0:00:09]} 51. Ke3 {[%clk 0:00:10]}  Rxe2+ {[%clk 0:00:09]} 52. Qxe2 {[%clk 0:00:11]}  Qxe2+ {[%clk 0:00:09]} 53. Kxe2 {[%clk 0:00:12]}  dxe5 {[%clk 0:00:10]} 54. Bc6 {[%clk 0:00:12]}  Rb8 {[%clk 0:00:07]} 55. fxe5 {[%clk 0:00:13]}  a4 {[%clk 0:00:07]} 56. Kd3 {[%clk 0:00:14]}  a3 {[%clk 0:00:06]} 57. Kc2 {[%clk 0:00:14]}  c4 {[%clk 0:00:06]} 58. Bd5 {[%clk 0:00:13]}  Kf8 {[%clk 0:00:04]} 59. Kc3 {[%clk 0:00:11]}  Ke7 {[%clk 0:00:04]} 60. g4 {[%clk 0:00:11]}  g5 {[%clk 0:00:04]} 61. Kc2 {[%clk 0:00:10]}  Kd7 {[%clk 0:00:04]} 62. Kb1 {[%clk 0:00:08]}  c3 {[%clk 0:00:03]} 63. Kc2 {[%clk 0:00:08]}  a2 {[%clk 0:00:03]} 64. e6+ {[%clk 0:00:08]}  Kd6 {[%clk 0:00:03]} 65. Bxa2 {[%clk 0:00:09]}  Rxb7 {[%clk 0:00:03]} 66. Kxc3 {[%clk 0:00:10]}  Ra7 {[%clk 0:00:03]} 67. Bb3 {[%clk 0:00:09]}  Ra1 {[%clk 0:00:03]} 68. Bc2 {[%clk 0:00:09]}  Rg1 {[%clk 0:00:03]} 69. Bf5 {[%clk 0:00:09]}  Rg3+ {[%clk 0:00:03]} 70. Kd4 {[%clk 0:00:10]}  Rg1 {[%clk 0:00:04]} 71. Ke4 {[%clk 0:00:10]}  Re1+ {[%clk 0:00:04]} 72. Kd4 {[%clk 0:00:10]}  Ke7 {[%clk 0:00:04]} 73. Kd5 {[%clk 0:00:10]}  Kf6 {[%clk 0:00:05]} 74. Kd4 {[%clk 0:00:11]}  Rd1+ {[%clk 0:00:05]} 75. Ke4 {[%clk 0:00:11]}  Re1+ {[%clk 0:00:06]} 76. Kd4 {[%clk 0:00:12]}  Rd1+ {[%clk 0:00:06]} 77. Ke4 {[%clk 0:00:12]}  Re1+ {[%clk 0:00:07]} 78. Kd4 {[%clk 0:00:13]} 1/2-1/2


[Site "https://www.chess.com"]

[Event "Titled Tuesday Blitz September 27 Late 2022"]
[White "Rego, Pedro Filipe"]
[Black "Toniutti, Ezio"]
[WhiteFideId "1904310"]
[BlackFideId "113034"]
[WhiteElo "2125"]
[BlackElo "2215"]
[Result "1-0"]
[Round "11"]
[TimeControl "180+1"]
[Date "2022.09.28"]
[WhiteClock "0:00:04"]
[BlackClock "0:00:02"]

1. c4 {[%clk 0:02:57]}  c6 {[%clk 0:02:58]} 2. d4 {[%clk 0:02:55]}  d5 {[%clk 0:02:58]} 3. Nf3 {[%clk 0:02:54]}  Nf6 {[%clk 0:02:58]} 4. e3 {[%clk 0:02:52]}  Bf5 {[%clk 0:02:58]} 5. Bd3 {[%clk 0:02:50]}  Bxd3 {[%clk 0:02:57]} 6. Qxd3 {[%clk 0:02:51]}  e6 {[%clk 0:02:58]} 7. O-O {[%clk 0:02:48]}  Nbd7 {[%clk 0:02:57]} 8. b3 {[%clk 0:02:47]}  Bb4 {[%clk 0:02:54]} 9. Bb2 {[%clk 0:02:36]}  O-O {[%clk 0:02:53]} 10. Nc3 {[%clk 0:02:32]}  a5 {[%clk 0:02:40]} 11. a3 {[%clk 0:02:23]}  Bxc3 {[%clk 0:02:37]} 12. Bxc3 {[%clk 0:02:24]}  a4 {[%clk 0:02:37]} 13. b4 {[%clk 0:02:17]}  Ne4 {[%clk 0:02:37]} 14. c5 {[%clk 0:02:13]}  f5 {[%clk 0:02:32]} 15. b5 {[%clk 0:02:10]}  Qc7 {[%clk 0:02:07]} 16. Rab1 {[%clk 0:02:08]}  Rfb8 {[%clk 0:01:54]} 17. bxc6 {[%clk 0:02:00]}  bxc6 {[%clk 0:01:54]} 18. Rxb8+ {[%clk 0:01:54]}  Rxb8 {[%clk 0:01:54]} 19. Bb4 {[%clk 0:01:52]}  Qb7 {[%clk 0:01:49]} 20. g3 {[%clk 0:01:45]}  h6 {[%clk 0:01:46]} 21. Kg2 {[%clk 0:01:42]}  Qb5 {[%clk 0:01:43]} 22. Qxb5 {[%clk 0:01:36]}  Rxb5 {[%clk 0:01:44]} 23. Ne1 {[%clk 0:01:32]}  Nb8 {[%clk 0:01:38]} 24. Nd3 {[%clk 0:01:30]}  Nd7 {[%clk 0:01:34]} 25. Nb2 {[%clk 0:01:26]}  Nb8 {[%clk 0:01:29]} 26. Nxa4 {[%clk 0:01:23]}  Na6 {[%clk 0:01:29]} 27. Nb2 {[%clk 0:01:12]}  Nxb4 {[%clk 0:01:28]} 28. axb4 {[%clk 0:01:13]}  Rxb4 {[%clk 0:01:26]} 29. Nd3 {[%clk 0:01:13]}  Ra4 {[%clk 0:01:21]} 30. Ne5 {[%clk 0:01:13]}  Ra6 {[%clk 0:01:18]} 31. Rb1 {[%clk 0:01:06]}  Ra2 {[%clk 0:01:15]} 32. Nxc6 {[%clk 0:01:02]}  Nxf2 {[%clk 0:01:11]} 33. Nb4 {[%clk 0:00:58]}  Rd2 {[%clk 0:01:03]} 34. Kf1 {[%clk 0:00:52]}  Ng4 {[%clk 0:00:59]} 35. Ke1 {[%clk 0:00:48]}  Rxh2 {[%clk 0:00:58]} 36. Rb3 {[%clk 0:00:42]}  Rh1+ {[%clk 0:00:46]} 37. Kd2 {[%clk 0:00:41]}  Rh2+ {[%clk 0:00:45]} 38. Kc1 {[%clk 0:00:28]}  Rh1+ {[%clk 0:00:43]} 39. Kb2 {[%clk 0:00:28]}  Rh2+ {[%clk 0:00:42]} 40. Ka3 {[%clk 0:00:25]}  Nf6 {[%clk 0:00:38]} 41. c6 {[%clk 0:00:23]}  Ne8 {[%clk 0:00:38]} 42. Nd3 {[%clk 0:00:18]}  Rc2 {[%clk 0:00:36]} 43. Ne5 {[%clk 0:00:17]}  Kh7 {[%clk 0:00:33]} 44. Rb8 {[%clk 0:00:14]}  Nd6 {[%clk 0:00:32]} 45. Kb3 {[%clk 0:00:11]}  Rc1 {[%clk 0:00:31]} 46. Kb2 {[%clk 0:00:10]}  Re1 {[%clk 0:00:24]} 47. Rd8 {[%clk 0:00:09]}  Nb5 {[%clk 0:00:22]} 48. Rb8 {[%clk 0:00:08]}  Nd6 {[%clk 0:00:22]} 49. c7 {[%clk 0:00:08]}  Rxe3 {[%clk 0:00:21]} 50. Rd8 {[%clk 0:00:06]}  Re2+ {[%clk 0:00:17]} 51. Kb3 {[%clk 0:00:06]}  Re3+ {[%clk 0:00:17]} 52. Kb4 {[%clk 0:00:06]}  Re4 {[%clk 0:00:11]} 53. Rxd6 {[%clk 0:00:03]}  Rxd4+ {[%clk 0:00:11]} 54. Kc5 {[%clk 0:00:04]}  Rd1 {[%clk 0:00:11]} 55. Kb6 {[%clk 0:00:03]}  Rb1+ {[%clk 0:00:11]} 56. Ka7 {[%clk 0:00:03]}  Ra1+ {[%clk 0:00:11]} 57. Kb8 {[%clk 0:00:04]}  Rb1+ {[%clk 0:00:11]} 58. Kc8 {[%clk 0:00:04]}  g5 {[%clk 0:00:10]} 59. Kd8 {[%clk 0:00:04]}  Rc1 {[%clk 0:00:09]} 60. Rc6 {[%clk 0:00:04]}  Re1 {[%clk 0:00:05]} 61. Nd7 {[%clk 0:00:04]}  d4 {[%clk 0:00:03]} 62. c8=Q {[%clk 0:00:04]}  d3 {[%clk 0:00:03]} 63. Nc5 {[%clk 0:00:04]}  d2 {[%clk 0:00:03]} 64. Qd7+ {[%clk 0:00:04]}  Kg6 {[%clk 0:00:03]} 65. Qxd2 {[%clk 0:00:04]}  Re5 {[%clk 0:00:02]} 66. Qd6 {[%clk 0:00:04]} 1-0


[Site "https://www.chess.com"]

[Event "Titled Tuesday Blitz September 27 Late 2022"]
[White "Romanchuk, Viktor"]
[Black "Christiansen, Johan-Sebastian"]
[WhiteFideId "14109271"]
[BlackFideId "1512668"]
[WhiteElo "2242"]
[BlackElo "2513"]
[Result "1-0"]
[Round "11"]
[TimeControl "180+1"]
[Date "2022.09.27"]
[WhiteClock "0:00:04"]
[BlackClock "0:00:13"]

1. d4 {[%clk 0:03:00]}  d6 {[%clk 0:02:56]} 2. c4 {[%clk 0:02:57]}  Nf6 {[%clk 0:02:55]} 3. Nc3 {[%clk 0:02:57]}  g6 {[%clk 0:02:56]} 4. Nf3 {[%clk 0:02:56]}  Bg7 {[%clk 0:02:57]} 5. g3 {[%clk 0:02:57]}  O-O {[%clk 0:02:55]} 6. Bg2 {[%clk 0:02:58]}  Nc6 {[%clk 0:02:52]} 7. O-O {[%clk 0:02:57]}  Bg4 {[%clk 0:02:52]} 8. h3 {[%clk 0:02:54]}  Bf5 {[%clk 0:02:48]} 9. Ne1 {[%clk 0:02:29]}  e5 {[%clk 0:02:44]} 10. d5 {[%clk 0:02:28]}  Ne7 {[%clk 0:02:43]} 11. e4 {[%clk 0:02:28]}  Bc8 {[%clk 0:02:42]} 12. Nd3 {[%clk 0:02:28]}  Nd7 {[%clk 0:02:39]} 13. Kh2 {[%clk 0:02:08]}  a5 {[%clk 0:02:30]} 14. Be3 {[%clk 0:02:02]}  b6 {[%clk 0:02:29]} 15. Qc2 {[%clk 0:01:56]}  f5 {[%clk 0:02:22]} 16. f4 {[%clk 0:01:54]}  Nc5 {[%clk 0:02:10]} 17. fxe5 {[%clk 0:01:34]}  Nxd3 {[%clk 0:02:00]} 18. Qxd3 {[%clk 0:01:25]}  Bxe5 {[%clk 0:01:58]} 19. Bd4 {[%clk 0:01:20]}  f4 {[%clk 0:01:51]} 20. Bxe5 {[%clk 0:01:19]}  dxe5 {[%clk 0:01:52]} 21. gxf4 {[%clk 0:01:18]}  exf4 {[%clk 0:01:52]} 22. e5 {[%clk 0:01:17]}  Nf5 {[%clk 0:01:43]} 23. Rxf4 {[%clk 0:01:10]}  Qg5 {[%clk 0:01:43]} 24. Raf1 {[%clk 0:01:07]}  Bd7 {[%clk 0:01:40]} 25. Ne4 {[%clk 0:01:06]}  Qe7 {[%clk 0:01:37]} 26. e6 {[%clk 0:00:55]}  Be8 {[%clk 0:01:34]} 27. Ng3 {[%clk 0:00:55]}  Rd8 {[%clk 0:01:30]} 28. Nxf5 {[%clk 0:00:53]}  gxf5 {[%clk 0:01:29]} 29. Rxf5 {[%clk 0:00:53]}  Bg6 {[%clk 0:01:27]} 30. Rxf8+ {[%clk 0:00:52]}  Rxf8 {[%clk 0:01:28]} 31. Rxf8+ {[%clk 0:00:51]}  Qxf8 {[%clk 0:01:29]} 32. Qg3 {[%clk 0:00:49]}  Qc5 {[%clk 0:01:25]} 33. b3 {[%clk 0:00:38]}  Kf8 {[%clk 0:01:24]} 34. Qf4+ {[%clk 0:00:27]}  Ke7 {[%clk 0:01:22]} 35. Kg3 {[%clk 0:00:26]}  Ke8 {[%clk 0:01:19]} 36. h4 {[%clk 0:00:24]}  Qe7 {[%clk 0:01:16]} 37. Bf3 {[%clk 0:00:22]}  Kd8 {[%clk 0:01:15]} 38. Qg5 {[%clk 0:00:21]}  Bb1 {[%clk 0:01:13]} 39. Qxe7+ {[%clk 0:00:17]}  Kxe7 {[%clk 0:01:13]} 40. Kf4 {[%clk 0:00:17]}  Bxa2 {[%clk 0:01:11]} 41. Bd1 {[%clk 0:00:17]}  Bb1 {[%clk 0:01:00]} 42. Ke5 {[%clk 0:00:11]}  Bd3 {[%clk 0:00:57]} 43. Kd4 {[%clk 0:00:11]}  Bb1 {[%clk 0:00:57]} 44. Kc3 {[%clk 0:00:11]}  c6 {[%clk 0:00:44]} 45. Bc2 {[%clk 0:00:10]}  Bxc2 {[%clk 0:00:36]} 46. Kxc2 {[%clk 0:00:11]}  b5 {[%clk 0:00:36]} 47. Kc3 {[%clk 0:00:07]}  b4+ {[%clk 0:00:34]} 48. Kd4 {[%clk 0:00:07]}  Kd6 {[%clk 0:00:28]} 49. h5 {[%clk 0:00:06]}  c5+ {[%clk 0:00:27]} 50. Ke4 {[%clk 0:00:06]}  h6 {[%clk 0:00:21]} 51. Ke3 {[%clk 0:00:04]}  Ke7 {[%clk 0:00:20]} 52. Kd3 {[%clk 0:00:05]}  Kd6 {[%clk 0:00:20]} 53. Ke4 {[%clk 0:00:05]}  Kc7 {[%clk 0:00:14]} 54. Ke5 {[%clk 0:00:05]}  a4 {[%clk 0:00:15]} 55. d6+ {[%clk 0:00:05]}  Kc6 {[%clk 0:00:09]} 56. d7 {[%clk 0:00:02]}  Kc7 {[%clk 0:00:04]} 57. Kf6 {[%clk 0:00:02]}  axb3 {[%clk 0:00:03]} 58. Ke7 {[%clk 0:00:02]}  b2 {[%clk 0:00:04]} 59. d8=Q+ {[%clk 0:00:03]}  Kc6 {[%clk 0:00:04]} 60. Qd1 {[%clk 0:00:03]}  Kb7 {[%clk 0:00:04]} 61. Qb3 {[%clk 0:00:03]}  Kc6 {[%clk 0:00:05]} 62. Qxb2 {[%clk 0:00:02]}  Kc7 {[%clk 0:00:06]} 63. Qb3 {[%clk 0:00:03]}  Kc6 {[%clk 0:00:07]} 64. Kf7 {[%clk 0:00:03]}  Kd6 {[%clk 0:00:07]} 65. e7 {[%clk 0:00:03]}  Ke5 {[%clk 0:00:08]} 66. e8=Q+ {[%clk 0:00:04]}  Kd6 {[%clk 0:00:08]} 67. Qf8+ {[%clk 0:00:03]}  Kc7 {[%clk 0:00:09]} 68. Qxh6 {[%clk 0:00:04]}  Kb7 {[%clk 0:00:08]} 69. Qg6 {[%clk 0:00:04]}  Ka8 {[%clk 0:00:09]} 70. h6 {[%clk 0:00:03]}  Kb7 {[%clk 0:00:10]} 71. h7 {[%clk 0:00:04]}  Ka8 {[%clk 0:00:11]} 72. h8=Q+ {[%clk 0:00:04]}  Kb7 {[%clk 0:00:11]} 73. Qhg7 {[%clk 0:00:04]}  Kc7 {[%clk 0:00:12]} 74. Kf6+ {[%clk 0:00:04]}  Kb8 {[%clk 0:00:13]} 75. Qe8# {[%clk 0:00:04]} 1-0


[Site "https://www.chess.com"]

[Event "Titled Tuesday Blitz September 27 Late 2022"]
[White "Runets, Ivan"]
[Black "Ansh M Shah"]
[WhiteFideId "13511564"]
[BlackFideId "25033379"]
[WhiteElo "1962"]
[BlackElo "1819"]
[Result "0-1"]
[Round "11"]
[TimeControl "180+1"]
[Date "2022.09.28"]
[WhiteClock "0:00:04"]
[BlackClock "0:00:33"]

1. d4 {[%clk 0:03:00]}  Nf6 {[%clk 0:02:59]} 2. c4 {[%clk 0:03:00]}  e6 {[%clk 0:03:00]} 3. Nc3 {[%clk 0:03:00]}  d5 {[%clk 0:03:01]} 4. Bg5 {[%clk 0:02:57]}  Be7 {[%clk 0:03:01]} 5. e3 {[%clk 0:02:57]}  O-O {[%clk 0:03:02]} 6. Nf3 {[%clk 0:02:56]}  Nbd7 {[%clk 0:03:01]} 7. Qc2 {[%clk 0:02:54]}  c6 {[%clk 0:03:01]} 8. h3 {[%clk 0:02:53]}  h6 {[%clk 0:02:57]} 9. Bh4 {[%clk 0:02:52]}  a5 {[%clk 0:02:54]} 10. Bd3 {[%clk 0:02:52]}  dxc4 {[%clk 0:02:54]} 11. Bxc4 {[%clk 0:02:53]}  b5 {[%clk 0:02:54]} 12. Bd3 {[%clk 0:02:53]}  Bb7 {[%clk 0:02:55]} 13. Ne4 {[%clk 0:02:53]}  Nxe4 {[%clk 0:02:54]} 14. Bxe7 {[%clk 0:02:52]}  Qxe7 {[%clk 0:02:53]} 15. Bxe4 {[%clk 0:02:53]}  Nf6 {[%clk 0:02:51]} 16. Bd3 {[%clk 0:02:50]}  Rac8 {[%clk 0:02:51]} 17. Qe2 {[%clk 0:02:41]}  c5 {[%clk 0:02:45]} 18. Bxb5 {[%clk 0:02:40]}  Bxf3 {[%clk 0:02:45]} 19. Qxf3 {[%clk 0:02:36]}  cxd4 {[%clk 0:02:46]} 20. O-O {[%clk 0:02:36]}  dxe3 {[%clk 0:02:45]} 21. Qxe3 {[%clk 0:02:37]}  Qb4 {[%clk 0:02:44]} 22. Qe2 {[%clk 0:02:35]}  Rb8 {[%clk 0:02:41]} 23. a4 {[%clk 0:02:34]}  Nd5 {[%clk 0:02:39]} 24. Rfc1 {[%clk 0:02:33]}  Qe7 {[%clk 0:02:29]} 25. Rc4 {[%clk 0:02:30]}  Nb4 {[%clk 0:02:27]} 26. Rac1 {[%clk 0:02:29]}  Qf6 {[%clk 0:02:26]} 27. R4c3 {[%clk 0:02:20]}  Rbd8 {[%clk 0:02:25]} 28. Rf3 {[%clk 0:02:18]}  Qd4 {[%clk 0:02:23]} 29. Rc7 {[%clk 0:02:11]}  Qb6 {[%clk 0:02:17]} 30. Qc4 {[%clk 0:02:06]}  Rd1+ {[%clk 0:02:11]} 31. Kh2 {[%clk 0:02:06]}  Qd6+ {[%clk 0:02:08]} 32. g3 {[%clk 0:02:05]}  Rb1 {[%clk 0:01:59]} 33. Rd7 {[%clk 0:01:49]}  Qe5 {[%clk 0:01:55]} 34. Qc3 {[%clk 0:00:41]}  Qe4 {[%clk 0:01:20]} 35. Rd4 {[%clk 0:00:38]}  Qa8 {[%clk 0:01:11]} 36. Rg4 {[%clk 0:00:37]}  g6 {[%clk 0:01:07]} 37. Qf6 {[%clk 0:00:35]}  Kh7 {[%clk 0:00:41]} 38. Rxg6 {[%clk 0:00:13]}  fxg6 {[%clk 0:00:42]} 39. Qxf8 {[%clk 0:00:13]}  Qxf8 {[%clk 0:00:43]} 40. Rxf8 {[%clk 0:00:14]}  Rxb2 {[%clk 0:00:42]} 41. Kg2 {[%clk 0:00:12]}  Nd5 {[%clk 0:00:42]} 42. Rf7+ {[%clk 0:00:12]}  Kg8 {[%clk 0:00:42]} 43. Ra7 {[%clk 0:00:12]}  Nc3 {[%clk 0:00:38]} 44. Rxa5 {[%clk 0:00:11]}  Ne4 {[%clk 0:00:38]} 45. Kf3 {[%clk 0:00:08]}  Nxf2 {[%clk 0:00:36]} 46. h4 {[%clk 0:00:05]}  Nd1 {[%clk 0:00:36]} 47. Ra8+ {[%clk 0:00:05]}  Kf7 {[%clk 0:00:34]} 48. a5 {[%clk 0:00:04]}  Rxb5 {[%clk 0:00:34]} 49. a6 {[%clk 0:00:03]}  Ra5 {[%clk 0:00:34]} 50. Ke2 {[%clk 0:00:01]}  Nc3+ {[%clk 0:00:34]} 51. Kd3 {[%clk 0:00:02]}  Nd5 {[%clk 0:00:34]} 52. Ra7+ {[%clk 0:00:02]}  Kf6 {[%clk 0:00:34]} 53. Kd4 {[%clk 0:00:03]}  Ra4+ {[%clk 0:00:34]} 54. Kc5 {[%clk 0:00:03]}  Ke5 {[%clk 0:00:34]} 55. Kb5 {[%clk 0:00:04]}  Ra1 {[%clk 0:00:34]} 56. Rh7 {[%clk 0:00:03]}  h5 {[%clk 0:00:34]} 57. a7 {[%clk 0:00:02]}  Kf5 {[%clk 0:00:32]} 58. Kc6 {[%clk 0:00:02]}  Nf6 {[%clk 0:00:32]} 59. Rf7 {[%clk 0:00:02]}  e5 {[%clk 0:00:32]} 60. Kb7 {[%clk 0:00:02]}  e4 {[%clk 0:00:32]} 61. a8=Q {[%clk 0:00:02]}  Rxa8 {[%clk 0:00:32]} 62. Kxa8 {[%clk 0:00:03]}  e3 {[%clk 0:00:32]} 63. Kb7 {[%clk 0:00:03]}  e2 {[%clk 0:00:32]} 64. Re7 {[%clk 0:00:03]}  Ne4 {[%clk 0:00:33]} 65. Rf7+ {[%clk 0:00:04]}  Ke5 {[%clk 0:00:32]} 66. Re7+ {[%clk 0:00:04]}  Kd4 {[%clk 0:00:33]} 67. Rd7+ {[%clk 0:00:04]}  Ke3 {[%clk 0:00:33]} 0-1


[Site "https://www.chess.com"]

[Event "Titled Tuesday Blitz September 27 Late 2022"]
[White "Rustemov, Alexander"]
[Black "Vlassov, Nikolai"]
[WhiteFideId "4119002"]
[BlackFideId "4103360"]
[WhiteElo "2825"]
[BlackElo "2324"]
[Result "1/2-1/2"]
[Round "11"]
[TimeControl "180+1"]
[Date "2022.09.27"]
[WhiteClock "0:00:23"]
[BlackClock "0:00:39"]

1. d4 {[%clk 0:03:00]}  Nf6 {[%clk 0:02:59]} 2. c4 {[%clk 0:03:01]}  Nc6 {[%clk 0:02:59]} 3. Nf3 {[%clk 0:03:01]}  e6 {[%clk 0:02:59]} 4. a3 {[%clk 0:03:00]}  g6 {[%clk 0:02:53]} 5. Nc3 {[%clk 0:02:59]}  Bg7 {[%clk 0:02:54]} 6. g3 {[%clk 0:02:59]}  O-O {[%clk 0:02:53]} 7. Bg2 {[%clk 0:02:59]}  d6 {[%clk 0:02:51]} 8. O-O {[%clk 0:02:58]}  e5 {[%clk 0:02:51]} 9. dxe5 {[%clk 0:02:49]}  dxe5 {[%clk 0:02:48]} 10. Bg5 {[%clk 0:02:48]}  Be6 {[%clk 0:02:39]} 11. Qa4 {[%clk 0:02:41]}  Qe8 {[%clk 0:02:35]} 12. Rfd1 {[%clk 0:02:29]}  h6 {[%clk 0:02:31]} 13. Bxf6 {[%clk 0:02:28]}  Bxf6 {[%clk 0:02:32]} 14. Nd5 {[%clk 0:02:28]}  Bd8 {[%clk 0:02:31]} 15. Rac1 {[%clk 0:02:17]}  Nd4 {[%clk 0:02:30]} 16. Qxe8 {[%clk 0:02:11]}  Nxf3+ {[%clk 0:02:30]} 17. Bxf3 {[%clk 0:02:10]}  Rxe8 {[%clk 0:02:30]} 18. c5 {[%clk 0:01:56]}  c6 {[%clk 0:02:23]} 19. Nc3 {[%clk 0:01:50]}  f5 {[%clk 0:02:18]} 20. e4 {[%clk 0:01:42]}  f4 {[%clk 0:02:14]} 21. b4 {[%clk 0:01:40]}  Be7 {[%clk 0:02:11]} 22. Be2 {[%clk 0:01:37]}  a5 {[%clk 0:02:07]} 23. Nb1 {[%clk 0:01:28]}  axb4 {[%clk 0:02:07]} 24. axb4 {[%clk 0:01:29]}  Red8 {[%clk 0:01:56]} 25. Nd2 {[%clk 0:01:20]}  Ra2 {[%clk 0:01:41]} 26. Bc4 {[%clk 0:01:19]}  Raxd2 {[%clk 0:01:33]} 27. Bxe6+ {[%clk 0:01:18]}  Kg7 {[%clk 0:01:34]} 28. Rxd2 {[%clk 0:01:15]}  Rxd2 {[%clk 0:01:34]} 29. Rb1 {[%clk 0:01:15]}  Bd8 {[%clk 0:01:16]} 30. Bc8 {[%clk 0:01:00]}  b6 {[%clk 0:01:16]} 31. Bb7 {[%clk 0:00:43]}  bxc5 {[%clk 0:01:15]} 32. bxc5 {[%clk 0:00:44]}  Rc2 {[%clk 0:01:07]} 33. Bxc6 {[%clk 0:00:43]}  Rxc5 {[%clk 0:01:07]} 34. Bd5 {[%clk 0:00:39]}  Rc2 {[%clk 0:01:04]} 35. Kg2 {[%clk 0:00:34]}  g5 {[%clk 0:01:02]} 36. h3 {[%clk 0:00:34]}  h5 {[%clk 0:01:01]} 37. g4 {[%clk 0:00:34]}  hxg4 {[%clk 0:00:59]} 38. hxg4 {[%clk 0:00:35]}  Be7 {[%clk 0:00:58]} 39. Rb7 {[%clk 0:00:33]}  Kf6 {[%clk 0:00:57]} 40. Rb6+ {[%clk 0:00:32]}  Kg7 {[%clk 0:00:57]} 41. Ra6 {[%clk 0:00:22]}  Bc5 {[%clk 0:00:54]} 42. Ra2 {[%clk 0:00:22]}  Rxa2 {[%clk 0:00:43]} 43. Bxa2 {[%clk 0:00:23]}  Kf6 {[%clk 0:00:39]} 1/2-1/2


[Site "https://www.chess.com"]